bitfinex/quotes_BTCUSD_20220111
["timestamp","ask_amount","ask_price","bid_price","bid_amount"]
[1641867221137,0.47512416,41867.0,41859.0,0.34466928]
[1641867221340,0.059736,41866.0,41859.0,0.34466928]
[1641867221538,0.059736,41866.0,41862.0,0.012]
[1641867221990,0.00077948,41865.0,41862.0,0.012]
[1641867222591,0.05077948,41865.0,41862.0,0.012]
[1641867222794,0.05077948,41865.0,41858.0,0.00069356]
[1641867222992,0.059741,41862.0,41856.0,0.02646124]
[1641867223196,0.059741,41862.0,41858.0,0.00069439]
[1641867223493,0.059741,41862.0,41858.0,0.26780566]
[1641867223694,0.059741,41862.0,41860.0,0.24139325]
[1641867223892,0.059741,41862.0,41861.0,0.31109283]
[1641867224092,0.47512416,41867.0,41861.0,0.31109283]
[1641867224293,0.00077979,41863.0,41861.0,0.31109283]
[1641867224696,0.00077979,41863.0,41858.0,0.26780568]
[1641867224895,0.00077979,41863.0,41858.0,0.00069441]
[1641867225296,0.05,41865.0,41856.0,0.02646124]
[1641867225495,0.32003083,41862.0,41858.0,0.01769441]
[1641867225945,0.37003083,41862.0,41858.0,0.31330871]
[1641867226345,0.37003083,41862.0,41858.0,0.01769441]
[1641867226546,0.37003083,41862.0,41858.0,0.017]
[1641867226747,0.37081053,41862.0,41858.0,0.00069415]
[1641867227047,0.059743,41861.0,41858.0,0.00069415]
[1641867227447,0.059743,41861.0,41858.0,0.01769415]
[1641867227648,0.37177381,41860.0,41858.0,0.01769415]
[1641867227848,0.37177381,41860.0,41858.0,0.017]
[1641867228048,0.059743,41861.0,41858.0,0.017]
[1641867228648,0.059743,41861.0,41858.0,0.28623205]
[1641867228947,0.059743,41861.0,41860.0,0.26259518]
[1641867229589,0.059743,41861.0,41860.0,0.27759518]
[1641867230687,0.059743,41861.0,41860.0,0.26259518]
[1641867231490,0.059743,41861.0,41860.0,0.27759518]
[1641867232994,0.06051773,41863.0,41860.0,0.27759518]
[1641867233253,0.06051773,41863.0,41860.0,0.62013271]
[1641867233254,0.00077973,41863.0,41860.0,0.62013271]
[1641867233444,0.00077973,41863.0,41861.0,0.371704]
[1641867233640,0.00077973,41863.0,41862.0,0.31569968]
[1641867233840,0.00719714,41871.0,41862.0,0.68740368]
[1641867234043,0.00077971,41864.0,41862.0,0.31569968]
[1641867234245,0.00077971,41864.0,41863.0,0.371704]
[1641867235046,0.49142384,41867.0,41863.0,0.371704]
[1641867235247,0.00077969,41866.0,41860.0,0.26259518]
[1641867235446,0.00077969,41866.0,41863.0,0.014]
[1641867236247,0.49142384,41867.0,41863.0,0.014]
[1641867236447,0.49220352,41867.0,41863.0,0.014]
[1641867236847,0.49220352,41867.0,41860.0,0.26259518]
[1641867237099,0.059736,41866.0,41860.0,0.26259518]
[1641867237498,0.0605157,41866.0,41860.0,0.27659518]
[1641867238099,0.059739,41865.0,41860.0,0.27659518]
[1641867238298,0.109739,41865.0,41860.0,0.27659518]
[1641867238500,0.3757112,41865.0,41860.0,0.014]
[1641867238704,0.37649091,41865.0,41860.0,0.014]
[1641867238898,0.37649091,41865.0,41858.0,0.0006942]
[1641867239103,0.02827814,41859.0,41858.0,0.0006942]
[1641867239500,0.02827814,41859.0,41858.0,0.0226942]
[1641867239699,0.02827814,41859.0,41858.0,0.022]
[1641867240844,0.02827814,41859.0,41856.0,0.02595426]
[1641867241044,0.08802414,41859.0,41857.0,0.31622657]
[1641867241447,0.05,41858.0,41857.0,0.32922657]
[1641867241844,0.05,41858.0,41857.0,0.31922657]
[1641867242045,0.05,41858.0,41857.0,0.013]
[1641867242944,0.05,41858.0,41856.0,0.02526]
[1641867243144,0.109747,41858.0,41856.0,0.02526]
[1641867243544,0.109747,41858.0,41856.0,0.04026]
[1641867244797,0.109747,41858.0,41856.0,0.02526]
[1641867245201,0.059747,41858.0,41856.0,0.02526]
[1641867245399,0.08802414,41859.0,41857.0,0.371704]
[1641867245400,0.02827814,41859.0,41857.0,0.371704]
[1641867245598,0.11051669,41862.0,41857.0,0.421704]
[1641867245799,0.059737,41862.0,41857.0,0.421704]
[1641867246000,0.06034636,41862.0,41857.0,0.421704]
[1641867246199,0.06034636,41862.0,41857.0,0.81734654]
[1641867246699,0.06034636,41862.0,41861.0,0.31244455]
[1641867246898,0.059737,41862.0,41861.0,0.31244455]
[1641867247299,0.06034639,41862.0,41857.0,0.44570832]
[1641867247499,0.07434639,41862.0,41861.0,0.01]
[1641867248000,0.12434639,41862.0,41861.0,0.01]
[1641867248245,0.123737,41862.0,41861.0,0.01]
[1641867248838,0.109737,41862.0,41858.0,0.00069295]
[1641867249041,0.059737,41862.0,41858.0,0.00069295]
[1641867249439,0.05,41863.0,41860.0,0.32386042]
[1641867249640,0.00060926,41862.0,41860.0,0.32386042]
[1641867250241,0.00060926,41862.0,41858.0,0.01569294]
[1641867250642,0.43941201,41866.0,41858.0,0.01569294]
[1641867250643,0.48941201,41866.0,41858.0,0.015]
[1641867250842,0.00066445,41863.0,41858.0,0.00071197]
[1641867251042,0.06040045,41863.0,41858.0,0.00071197]
[1641867251244,0.06040045,41863.0,41859.0,0.26733015]
[1641867251647,0.06040045,41863.0,41858.0,0.01471197]
[1641867251989,0.059736,41863.0,41858.0,0.014]
[1641867252690,0.06040047,41863.0,41858.0,0.00071195]
[1641867252889,0.06040047,41863.0,41856.0,0.07526]
[1641867253090,0.059736,41863.0,41858.0,0.278289]
[1641867253291,0.06040046,41863.0,41858.0,0.328289]
[1641867254092,0.059736,41863.0,41858.0,0.32757706]
[1641867254297,0.06038247,41863.0,41858.0,0.32828284]
[1641867255293,0.059736,41863.0,41858.0,0.32757706]
[1641867255494,0.06038443,41863.0,41858.0,0.3422807]
[1641867255942,0.06038443,41863.0,41862.0,0.25153353]
[1641867256642,0.059736,41863.0,41862.0,0.25153353]
[1641867257243,0.00064845,41865.0,41862.0,0.25153353]
[1641867257443,0.00064845,41865.0,41863.0,0.33171849]
[1641867257644,0.00064845,41865.0,41862.0,0.26253353]
[1641867257843,0.059727,41869.0,41862.0,0.26253353]
[1641867258045,0.00065369,41866.0,41862.0,0.26253353]
[1641867258845,0.00065369,41866.0,41862.0,0.25153353]
[1641867259046,0.054727,41869.0,41862.0,0.25153353]
[1641867259249,0.00065283,41866.0,41862.0,0.25153353]
[1641867259492,0.00065283,41866.0,41862.0,0.26153353]
[1641867260091,0.40924484,41869.0,41865.0,0.24236643]
[1641867260491,0.00065283,41866.0,41865.0,0.24236643]
[1641867261092,0.00065283,41866.0,41859.0,0.00124779]
[1641867261292,0.00065283,41866.0,41858.0,0.00070639]
[1641867261293,0.059739,41863.0,41858.0,0.00070639]
[1641867261491,0.14058574,41862.0,41858.0,0.00070591]
[1641867261690,0.19058574,41862.0,41858.0,0.00070591]
[1641867262093,0.74910568,41861.0,41858.0,0.00070591]
[1641867262290,0.49850063,41861.0,41858.0,0.00070591]
[1641867262494,0.61799663,41861.0,41856.0,0.2666874]
[1641867262694,0.67774563,41861.0,41856.0,0.2666874]
[1641867262891,0.67774563,41861.0,41857.0,0.00070556]
[1641867263093,0.55824963,41861.0,41857.0,0.00070556]
[1641867263343,0.0477,41861.0,41860.0,0.32455796]
[1641867263543,0.1007,41861.0,41860.0,0.32455796]
[1641867263746,0.0507,41861.0,41860.0,0.32455796]
[1641867263945,0.1007,41861.0,41860.0,0.32455796]
[1641867264143,0.1007,41861.0,41858.0,0.00070556]
[1641867264144,0.0507,41861.0,41858.0,0.00070556]
[1641867264544,0.110447,41861.0,41858.0,0.00070556]
[1641867264746,0.157447,41861.0,41858.0,0.00070556]
[1641867264945,0.157447,41861.0,41856.0,0.2666874]
[1641867265143,0.157447,41861.0,41857.0,0.30932062]
[1641867265348,0.059747,41861.0,41857.0,0.7394387]
[1641867265544,0.00065203,41862.0,41860.0,0.00129561]
[1641867265745,0.00065203,41862.0,41861.0,1.421704]
[1641867266044,0.00065203,41862.0,41861.0,0.87799601]
[1641867266243,0.60496653,41870.0,41868.0,0.28520891]
[1641867266444,0.60496653,41870.0,41869.0,0.62281757]
[1641867266646,0.60496653,41870.0,41869.0,0.69125757]
[1641867266845,0.00719714,41871.0,41869.0,0.69125757]
[1641867267097,0.059724,41870.0,41869.0,0.69125757]
[1641867267494,0.059724,41870.0,41869.0,0.39030052]
[1641867267694,0.059724,41870.0,41869.0,0.6296894]
[1641867267897,0.059724,41870.0,41869.0,0.32186052]
[1641867268897,0.059724,41870.0,41869.0,0.31586052]
[1641867269096,0.059724,41870.0,41869.0,0.62454812]
[1641867269297,0.059724,41870.0,41869.0,0.62216482]
[1641867269496,0.00719714,41871.0,41869.0,0.64088537]
[1641867269905,0.00719714,41871.0,41870.0,0.30772568]
[1641867270097,0.00719714,41871.0,41870.0,0.38453568]
[1641867271541,0.00719714,41871.0,41870.0,0.016]
[1641867272241,0.43470436,41871.0,41870.0,0.016]
[1641867272944,0.43470436,41871.0,41869.0,0.31617403]
[1641867273544,0.43470436,41871.0,41869.0,0.34417403]
[1641867274144,0.43470436,41871.0,41869.0,0.028]
[1641867274597,0.00719714,41871.0,41869.0,0.028]
[1641867274797,0.00719714,41871.0,41868.0,0.56968304]
[1641867275599,0.00719714,41871.0,41868.0,0.59768304]
[1641867276006,0.11946,41870.0,41868.0,0.28652041]
[1641867276200,0.11946,41870.0,41868.0,0.028]
[1641867276403,0.16946,41870.0,41868.0,0.028]
[1641867276799,0.27123958,41870.0,41861.0,0.3031]
[1641867276999,0.27123958,41870.0,41860.0,0.05]
[1641867277000,0.059739,41866.0,41860.0,0.36786465]
[1641867277203,0.059739,41866.0,41864.0,0.26147218]
[1641867277204,0.119476,41866.0,41864.0,0.26147218]
[1641867277401,0.05,41865.0,41864.0,0.56598143]
[1641867278349,0.05,41865.0,41864.0,0.88633883]
[1641867278750,0.059739,41866.0,41864.0,0.56598143]
[1641867278948,0.00065225,41867.0,41865.0,0.32873237]
[1641867279349,0.05719714,41871.0,41866.0,0.371704]
[1641867279549,0.00065169,41868.0,41865.0,0.36123855]
[1641867279754,0.00065169,41868.0,41866.0,0.371704]
[1641867279951,0.00065169,41868.0,41867.0,0.36281593]
[1641867280151,0.00065169,41868.0,41867.0,1.09838892]
[1641867280551,0.00719714,41871.0,41867.0,1.09838892]
[1641867280751,0.0006518,41870.0,41868.0,0.371704]
[1641867280952,0.0006518,41870.0,41869.0,0.31274191]
[1641867281152,0.0006518,41870.0,41869.0,0.68444591]
[1641867281651,0.0006518,41870.0,41869.0,0.70744591]
[1641867281854,0.00719714,41871.0,41869.0,0.70744591]
[1641867282096,0.00719714,41871.0,41870.0,0.30754986]
[1641867282296,0.00719714,41871.0,41870.0,0.35754986]
[1641867283495,0.00719714,41871.0,41870.0,0.05]
[1641867283795,0.00719714,41871.0,41870.0,0.02]
[1641867284799,0.00719714,41871.0,41867.0,0.41386899]
[1641867285000,0.00719714,41871.0,41868.0,0.17357712]
[1641867285501,0.00719714,41871.0,41869.0,0.421704]
[1641867287549,0.00719714,41871.0,41869.0,0.442704]
[1641867288949,0.00719714,41871.0,41869.0,0.421704]
[1641867289592,0.00719714,41871.0,41869.0,0.442704]
[1641867290192,0.00719714,41871.0,41870.0,1.22487702]
[1641867290393,0.00719714,41871.0,41870.0,0.371704]
[1641867291195,0.00065192,41872.0,41870.0,0.60643791]
[1641867291392,0.70788415,41887.0,41871.0,2.09373978]
[1641867291593,0.00065192,41873.0,41872.0,2.364]
[1641867291793,0.00065192,41873.0,41872.0,2.735704]
[1641867291993,0.00065192,41873.0,41872.0,2.83692418]
[1641867292193,0.00065192,41873.0,41872.0,2.23438793]
[1641867292616,0.059704,41885.0,41882.0,0.29648013]
[1641867292993,0.059704,41885.0,41882.0,0.34648013]
[1641867293249,0.47793448,41885.0,41882.0,0.05]
[1641867293644,0.47793448,41885.0,41882.0,0.017]
[1641867294044,0.059711,41884.0,41882.0,0.017]
[1641867294244,0.17913,41884.0,41882.0,0.017]
[1641867294645,0.119419,41884.0,41882.0,0.017]
[1641867294845,0.119419,41884.0,41880.0,0.31464246]
[1641867295248,0.119419,41884.0,41879.0,0.33455319]
[1641867295746,0.119419,41884.0,41880.0,0.017]
[1641867296348,0.00065201,41884.0,41880.0,0.017]
[1641867296992,0.00065201,41884.0,41881.0,0.421704]
[1641867297394,0.31228908,41884.0,41881.0,0.421704]
[1641867297594,0.31228908,41884.0,41881.0,0.437704]
[1641867297893,0.31228908,41884.0,41881.0,0.066]
[1641867298093,0.31228908,41884.0,41881.0,0.016]
[1641867298893,0.31228908,41884.0,41879.0,0.33455319]
[1641867299594,0.31228908,41884.0,41879.0,0.35455319]
[1641867299995,0.312941,41884.0,41879.0,0.35455319]
[1641867300194,0.312941,41884.0,41879.0,0.02]
[1641867300397,0.372651,41884.0,41879.0,0.02]
[1641867300843,0.372651,41884.0,41874.0,0.00121869]
[1641867300844,0.00065192,41884.0,41874.0,1.64191706]
[1641867301048,0.05,41886.0,41875.0,1.64364898]
[1641867301257,0.00065195,41884.0,41882.0,0.00122837]
[1641867301443,0.00065195,41884.0,41883.0,0.00556692]
[1641867301644,0.00065195,41884.0,41883.0,0.9]
[1641867301844,0.00065195,41884.0,41883.0,1.65310442]
[1641867302043,0.00065195,41884.0,41883.0,2.66561019]
[1641867302244,0.0011,41889.0,41883.0,2.297812]
[1641867302445,0.0011,41889.0,41884.0,0.37825851]
[1641867302446,0.00065196,41886.0,41884.0,0.37825851]
[1641867302747,0.00065196,41886.0,41884.0,0.42825851]
[1641867303649,0.00065198,41887.0,41884.0,0.44925851]
[1641867304696,0.0011,41889.0,41884.0,0.44925851]
[1641867304896,0.00065196,41888.0,41884.0,0.84262716]
[1641867305097,0.00065196,41888.0,41885.0,0.059689]
[1641867305296,0.00065196,41888.0,41886.0,0.371704]
[1641867305495,0.00065196,41888.0,41886.0,0.421704]
[1641867305897,0.00065196,41888.0,41886.0,0.05]
[1641867306095,0.00065196,41888.0,41885.0,0.022]
[1641867306096,0.00175198,41889.0,41885.0,0.072]
[1641867306302,0.00175198,41889.0,41885.0,0.022]
[1641867306496,0.00175198,41889.0,41885.0,0.072]
[1641867306899,0.00175198,41889.0,41885.0,0.05]
[1641867307300,0.00175198,41889.0,41884.0,0.38833511]
[1641867307702,0.00175198,41889.0,41885.0,0.022]
[1641867308102,0.0011,41889.0,41885.0,0.022]
[1641867308346,0.00187817,41889.0,41886.0,0.371704]
[1641867308544,0.00187817,41889.0,41886.0,0.421704]
[1641867309346,0.01536973,41888.0,41886.0,0.421704]
[1641867309546,0.03073946,41888.0,41887.0,0.3085974]
[1641867309746,0.03073946,41888.0,41887.0,0.6803014]
[1641867309946,0.03073946,41888.0,41887.0,0.371704]
[1641867311348,0.03073946,41888.0,41887.0,0.67959019]
[1641867311649,0.03073946,41888.0,41887.0,0.70459019]
[1641867312895,0.03073946,41888.0,41887.0,0.67959019]
[1641867313695,0.03073946,41888.0,41887.0,0.70459019]
[1641867314300,0.03073946,41888.0,41887.0,0.396704]
[1641867314897,0.03073946,41888.0,41887.0,0.371704]
[1641867315198,0.03073946,41888.0,41887.0,0.31501205]
[1641867315397,0.03073946,41888.0,41887.0,3.53160823]
[1641867315598,0.03073946,41888.0,41887.0,3.68899023]
[1641867315599,3.946e-05,41888.0,41887.0,3.68899023]
[1641867315849,0.0011,41889.0,41887.0,3.36432095]
[1641867316146,0.0011,41889.0,41888.0,1.635704]
[1641867316547,0.25139217,41905.0,41890.0,1.264]
[1641867316748,0.009573,41908.0,41902.0,0.059663]
[1641867316955,0.009573,41908.0,41898.0,0.12056145]
[1641867316956,0.009573,41908.0,41898.0,0.00123545]
[1641867317347,0.10904317,41908.0,41898.0,0.00123545]
[1641867317548,0.23765325,41900.0,41898.0,0.00123545]
[1641867317848,0.34734025,41900.0,41898.0,0.026]
[1641867318252,0.29734025,41900.0,41898.0,0.026]
[1641867318847,0.34734025,41900.0,41898.0,0.026]
[1641867319050,0.34734025,41900.0,41894.0,0.02342]
[1641867319693,0.34734025,41900.0,41894.0,0.05242]
[1641867320094,0.29734025,41900.0,41894.0,0.05242]
[1641867320493,0.00078394,41899.0,41894.0,0.05242]
[1641867320694,0.00078394,41899.0,41894.0,0.05368852]
[1641867320895,0.00078394,41899.0,41895.0,0.371704]
[1641867321194,0.00078394,41899.0,41895.0,0.421704]
[1641867321395,0.29734025,41900.0,41895.0,0.421704]
[1641867321694,0.00078394,41899.0,41895.0,0.451704]
[1641867321894,0.00078394,41899.0,41895.0,0.401704]
[1641867322497,0.34734025,41900.0,41895.0,0.401704]
[1641867322796,0.00078394,41899.0,41895.0,0.401704]
[1641867322996,0.00078394,41899.0,41895.0,0.371704]
[1641867323646,0.00078394,41899.0,41895.0,0.02]
[1641867323845,0.34734025,41900.0,41895.0,0.02]
[1641867324047,0.00078394,41899.0,41895.0,0.02]
[1641867324754,0.00078394,41899.0,41896.0,0.371704]
[1641867324951,0.05718886,41901.0,41896.0,0.371704]
[1641867325150,0.00078394,41899.0,41896.0,0.421704]
[1641867325753,0.00078394,41899.0,41896.0,0.440704]
[1641867326153,0.00718886,41901.0,41896.0,0.440704]
[1641867326352,0.00718886,41901.0,41900.0,0.24251613]
[1641867327596,0.00718886,41901.0,41900.0,0.61422013]
[1641867327797,0.00718886,41901.0,41900.0,0.63122013]
[1641867328999,0.00718886,41901.0,41900.0,0.61422013]
[1641867329499,0.00718886,41901.0,41900.0,0.371704]
[1641867329700,0.00718886,41901.0,41900.0,0.388704]
[1641867329905,0.00718886,41901.0,41900.0,0.017]
[1641867330503,0.00718886,41901.0,41900.0,0.34196436]
[1641867331146,0.00718886,41901.0,41900.0,0.32496436]
[1641867331347,0.00718886,41901.0,41898.0,0.00123032]
[1641867331546,0.00718886,41901.0,41899.0,0.371704]
[1641867331746,0.00718886,41901.0,41900.0,0.023]
[1641867332347,0.00718886,41901.0,41900.0,0.33864276]
[1641867332949,0.00718886,41901.0,41898.0,0.00123032]
[1641867333351,0.00718886,41901.0,41897.0,0.45308663]
[1641867333549,0.00718886,41901.0,41898.0,0.371704]
[1641867333749,0.00718886,41901.0,41898.0,0.395704]
[1641867335098,0.00718886,41901.0,41899.0,0.31110678]
[1641867335296,0.00718886,41901.0,41900.0,0.371704]
[1641867335497,0.00718886,41901.0,41899.0,0.31110678]
[1641867335797,0.00718886,41901.0,41899.0,0.33710678]
[1641867336298,0.00718886,41901.0,41899.0,0.026]
[1641867337097,0.00718886,41901.0,41897.0,0.45308663]
[1641867337299,0.00718886,41901.0,41898.0,0.371704]
[1641867338754,0.00718886,41901.0,41899.0,0.26525896]
[1641867339052,0.00718886,41901.0,41900.0,0.371704]
[1641867339754,0.00718886,41901.0,41900.0,0.394704]
[1641867340951,0.00718886,41901.0,41900.0,0.371704]
[1641867341152,0.00718886,41901.0,41899.0,0.26525896]
[1641867341753,0.00718886,41901.0,41899.0,0.28925896]
[1641867342998,0.00718886,41901.0,41899.0,0.024]
[1641867343599,0.00718886,41901.0,41897.0,0.45308663]
[1641867343798,0.00718886,41901.0,41899.0,0.024]
[1641867344999,0.00718886,41901.0,41898.0,0.59040292]
[1641867345199,0.00718886,41901.0,41899.0,0.371704]
[1641867345847,0.00718886,41901.0,41899.0,0.395704]
[1641867347047,0.00718886,41901.0,41899.0,0.371704]
[1641867347245,0.00718886,41901.0,41898.0,0.26369611]
[1641867347848,0.00718886,41901.0,41898.0,0.28769611]
[1641867348249,0.00718886,41901.0,41899.0,0.371704]
[1641867349247,0.00718886,41901.0,41898.0,0.26369611]
[1641867349700,0.00597628,41901.0,41898.0,0.26369611]
[1641867349897,0.00597628,41901.0,41899.0,0.371704]
[1641867350098,0.00597628,41901.0,41900.0,0.00124792]
[1641867350300,0.00597628,41901.0,41898.0,0.027]
[1641867350500,0.05367628,41901.0,41898.0,0.027]
[1641867351098,0.05367628,41901.0,41897.0,0.33727293]
[1641867351799,0.05367628,41901.0,41897.0,0.35627293]
[1641867351999,0.0477,41901.0,41897.0,0.35627293]
[1641867352200,0.0477,41901.0,41899.0,0.29410448]
[1641867352603,0.0477,41901.0,41900.0,0.00127141]
[1641867353003,0.06045794,41902.0,41900.0,0.00127141]
[1641867353454,0.06045794,41902.0,41900.0,0.45668542]
[1641867353656,0.06045794,41902.0,41900.0,0.00127141]
[1641867353855,0.05967397,41902.0,41900.0,0.02227141]
[1641867355154,0.05967397,41902.0,41900.0,0.00127141]
[1641867355754,0.05967397,41902.0,41900.0,0.02127141]
[1641867357209,0.00078398,41903.0,41900.0,0.00127141]
[1641867357409,0.17905535,41908.0,41900.0,0.00127141]
[1641867357410,0.17905535,41908.0,41901.0,0.371704]
[1641867357609,0.30113544,41909.0,41904.0,0.00123466]
[1641867357809,0.01113544,41909.0,41904.0,0.00123466]
[1641867358410,0.01113544,41909.0,41900.0,0.017]
[1641867358616,0.008,41909.0,41900.0,0.017]
[1641867358814,0.00878403,41909.0,41900.0,0.017]
[1641867359112,0.00878403,41909.0,41897.0,0.33727293]
[1641867359312,0.05967737,41904.0,41897.0,0.33727293]
[1641867359712,0.05967737,41904.0,41898.0,0.67744041]
[1641867359914,0.05967737,41904.0,41898.0,0.91200174]
[1641867359915,0.00078397,41903.0,41898.0,0.91200174]
[1641867360113,0.00078397,41903.0,41902.0,0.00122467]
[1641867361053,0.05967737,41904.0,41902.0,0.00122467]
[1641867361850,0.05967737,41904.0,41902.0,0.01722467]
[1641867363053,0.05967737,41904.0,41902.0,0.00122467]
[1641867363253,0.000784,41905.0,41903.0,0.42212711]
[1641867363554,0.008,41909.0,41908.0,0.00128507]
[1641867363755,0.008,41909.0,41908.0,0.03340507]
[1641867364153,0.008,41909.0,41908.0,0.85229552]
[1641867364353,0.008,41909.0,41908.0,0.30229552]
[1641867365000,0.008,41909.0,41908.0,0.67399952]
[1641867365203,0.008,41909.0,41908.0,2.32954474]
[1641867365401,0.008,41909.0,41908.0,2.42954474]
[1641867365803,0.008,41909.0,41908.0,2.08799952]
[1641867366002,0.008,41909.0,41908.0,2.10499952]
[1641867366701,0.00078405,41911.0,41909.0,1.45]
[1641867366903,0.00078405,41911.0,41910.0,1.69661567]
[1641867367102,0.60496653,41922.0,41918.0,0.00123471]
[1641867367301,0.60496653,41922.0,41920.0,0.2539611]
[1641867367503,0.60496653,41922.0,41919.0,0.75554397]
[1641867367706,0.60496653,41927.0,41918.0,0.00123471]
[1641867367902,0.60496653,41927.0,41920.0,0.012]
[1641867368349,0.05964512,41924.0,41920.0,0.012]
[1641867368547,0.00078417,41923.0,41920.0,0.012]
[1641867368748,0.25670478,41922.0,41920.0,0.012]
[1641867369150,0.25670478,41922.0,41919.0,0.29428385]
[1641867369347,0.05964512,41924.0,41919.0,0.29428385]
[1641867369548,0.00078417,41923.0,41919.0,0.29428385]
[1641867369947,0.00078417,41923.0,41919.0,0.30728385]
[1641867370148,0.00078417,41923.0,41919.0,0.013]
[1641867370547,0.05964512,41924.0,41922.0,0.00128959]
[1641867370748,0.00078417,41923.0,41922.0,0.00128959]
[1641867371451,0.00078417,41923.0,41918.0,0.32948006]
[1641867371849,0.37724468,41924.0,41922.0,0.013]
[1641867372102,0.00078417,41923.0,41922.0,0.013]
[1641867373002,0.52724468,41924.0,41922.0,0.013]
[1641867373202,0.05965832,41917.0,41909.0,0.32225751]
[1641867373401,0.11931664,41918.0,41910.0,0.37299336]
[1641867373603,0.11931664,41918.0,41913.0,0.27473526]
[1641867373802,0.05,41917.0,41914.0,0.371704]
[1641867374003,0.3313,41922.0,41914.0,0.371704]
[1641867374206,0.17897592,41917.0,41913.0,0.27473526]
[1641867374404,0.44821521,41917.0,41914.0,0.371704]
[1641867375949,0.44821521,41917.0,41914.0,0.393704]
[1641867376450,0.00718915,41915.0,41914.0,0.022]
[1641867376650,1.10277071,41915.0,41914.0,0.022]
[1641867376854,0.05488915,41915.0,41914.0,0.022]
[1641867377048,0.05488915,41915.0,41904.0,0.26536464]
[1641867377250,0.05488915,41915.0,41908.0,0.26825834]
[1641867377550,0.05488915,41915.0,41908.0,0.68230062]
[1641867377956,0.00078408,41914.0,41908.0,0.72230062]
[1641867378249,0.05966158,41912.0,41908.0,0.72230062]
[1641867378450,0.05966158,41912.0,41909.0,0.371704]
[1641867379050,0.05966158,41912.0,41908.0,0.30825834]
[1641867379250,0.05966158,41912.0,41908.0,0.26825834]
[1641867379700,0.05966158,41912.0,41909.0,0.82501338]
[1641867379901,0.00078407,41913.0,41909.0,0.82501338]
[1641867380101,0.00078407,41913.0,41909.0,0.371704]
[1641867380302,0.00718915,41915.0,41909.0,0.371704]
[1641867380502,0.00078407,41913.0,41908.0,0.30325834]
[1641867380703,0.00078407,41913.0,41909.0,0.371704]
[1641867381103,0.05965905,41912.0,41909.0,0.371704]
[1641867381902,0.05965905,41912.0,41909.0,0.403704]
[1641867382106,0.00078408,41913.0,41909.0,0.403704]
[1641867382107,0.00078408,41913.0,41911.0,0.00124084]
[1641867382304,0.00078408,41913.0,41912.0,1.82297118]
[1641867382704,1.80176653,41926.0,41912.0,0.37297118]
[1641867382904,0.00078409,41914.0,41913.0,0.37122105]
[1641867383104,0.00078409,41914.0,41913.0,0.74292505]
[1641867383750,0.30937285,41921.0,41913.0,0.74292505]
[1641867383948,0.0007841,41916.0,41914.0,0.371704]
[1641867384151,0.0007841,41916.0,41915.0,1.01763494]
[1641867384348,0.0007841,41916.0,41915.0,1.28022107]
[1641867384950,0.05964626,41921.0,41915.0,1.28022107]
[1641867385149,0.00078412,41918.0,41916.0,0.371704]
[1641867385948,0.00078412,41918.0,41917.0,0.3040324]
[1641867386149,0.05964626,41921.0,41917.0,0.6757364]
[1641867386350,0.00078413,41919.0,41916.0,0.018]
[1641867386848,0.00078413,41919.0,41917.0,0.371704]
[1641867387503,0.05964626,41921.0,41915.0,0.30726409]
[1641867387705,0.00078414,41920.0,41915.0,0.30726409]
[1641867387903,0.00078414,41920.0,41917.0,0.017]
[1641867388605,0.05964626,41921.0,41917.0,0.017]
[1641867388805,0.05543041,41921.0,41917.0,0.017]
[1641867389203,0.05543041,41921.0,41915.0,0.25179981]
[1641867389809,0.05464626,41921.0,41915.0,0.25179981]
[1641867390104,0.00078414,41920.0,41915.0,0.26979981]
[1641867390948,0.05464626,41921.0,41915.0,0.26979981]
[1641867391150,0.00078414,41920.0,41914.0,0.00120425]
[1641867391950,0.00078414,41920.0,41914.0,0.02020425]
[1641867392150,0.05464626,41921.0,41914.0,0.02020425]
[1641867392354,0.00078413,41919.0,41914.0,0.02020425]
[1641867392552,0.05965638,41917.0,41914.0,0.019]
[1641867392854,0.4565417,41916.0,41914.0,0.019]
[1641867393652,0.06762738,41917.0,41914.0,0.019]
[1641867393853,0.06762738,41917.0,41910.0,0.29483605]
[1641867394053,0.06762738,41917.0,41914.0,0.037]
[1641867394698,0.06684327,41917.0,41914.0,0.037]
[1641867395299,0.06684327,41917.0,41910.0,0.29483605]
[1641867395498,0.06684327,41917.0,41911.0,0.371704]
[1641867395900,0.06684327,41917.0,41911.0,0.406704]
[1641867396102,0.06684327,41917.0,41912.0,0.059648]
[1641867396103,0.0007841,41916.0,41912.0,0.059648]
[1641867396300,0.0007841,41916.0,41913.0,0.371704]
[1641867397102,0.00718689,41917.0,41913.0,0.371704]
[1641867397302,0.007971,41917.0,41913.0,0.371704]
[1641867398104,0.007971,41917.0,41913.0,0.401704]
[1641867398352,0.007971,41917.0,41913.0,0.03]
[1641867398353,0.11932125,41916.0,41913.0,0.03]
[1641867398551,0.05965922,41915.0,41913.0,0.03]
[1641867399152,0.007971,41917.0,41913.0,0.03]
[1641867399351,0.00718689,41917.0,41912.0,0.38269519]
[1641867399550,0.00718689,41917.0,41913.0,0.371704]
[1641867399749,0.0007841,41916.0,41913.0,0.371704]
[1641867400353,0.0007841,41916.0,41914.0,0.29246617]
[1641867400553,0.00718689,41917.0,41915.0,0.371704]
[1641867400750,0.007971,41917.0,41915.0,0.371704]
[1641867401852,0.00718689,41917.0,41915.0,0.371704]
[1641867402103,0.00718689,41917.0,41915.0,0.393704]
[1641867402805,0.00718689,41917.0,41916.0,2.08506012]
[1641867403004,0.2902,41925.0,41916.0,3.72985335]
[1641867403205,0.00078412,41918.0,41917.0,0.371704]
[1641867403506,0.00078412,41918.0,41917.0,0.90885091]
[1641867403703,0.00078412,41918.0,41917.0,0.5581586]
[1641867403904,0.00078412,41918.0,41917.0,0.394704]
[1641867404305,0.2902,41925.0,41917.0,0.394704]
[1641867404504,0.00078414,41920.0,41917.0,0.023]
[1641867404706,0.00078414,41920.0,41918.0,0.371704]
[1641867405506,0.11928998,41927.0,41922.0,0.25967414]
[1641867405753,0.12242612,41927.0,41922.0,0.25967414]
[1641867405952,0.00313614,41927.0,41922.0,0.25967414]
[1641867406151,0.00313614,41927.0,41923.0,0.21646874]
[1641867406552,0.008,41929.0,41923.0,0.21646874]
[1641867406751,0.008,41929.0,41922.0,0.25967414]
[1641867406752,0.008,41929.0,41927.0,0.31654203]
[1641867407955,0.008,41929.0,41927.0,0.33054203]
[1641867409251,0.008,41929.0,41927.0,0.31654203]